[Event "December 12 Early 2023"]
[Site "https://www.chess.com"]
[Date "2023.12.12"]
[Round "1"]
[White "Aronian, Levon"]
[Black "Mika, Tomasz"]
[Result "1-0"]
[Board "1"]
[TimeControl "180+1"]
[WhiteFideId "13300474"]
[BlackFideId "1132970"]
[WhiteElo "3117"]
[BlackElo "2530"]
[WhiteTeam "USA"]
[BlackTeam "POL"]
[WhiteClock "0:00:45"]
[BlackClock "0:00:05"]

1. e4 {[%clk 0:03:00]}  c6 {[%clk 0:02:59]} 2. d4 {[%clk 0:02:59]}  d5 {[%clk 0:02:59]} 3. e5 {[%clk 0:02:59]}  Bf5 {[%clk 0:02:58]} 4. c4 {[%clk 0:02:59]}  e6 {[%clk 0:02:58]} 5. Nc3 {[%clk 0:03:00]}  dxc4 {[%clk 0:02:56]} 6. Bxc4 {[%clk 0:03:00]}  Nd7 {[%clk 0:02:56]} 7. Nge2 {[%clk 0:03:00]}  Ne7 {[%clk 0:02:56]} 8. O-O {[%clk 0:02:59]}  Nb6 {[%clk 0:02:56]} 9. Bb3 {[%clk 0:02:59]}  h6 {[%clk 0:02:53]} 10. Be3 {[%clk 0:02:52]}  Nbd5 {[%clk 0:02:49]} 11. Rc1 {[%clk 0:02:49]}  Nxc3 {[%clk 0:02:42]} 12. bxc3 {[%clk 0:02:46]}  g5 {[%clk 0:02:32]} 13. Ng3 {[%clk 0:02:41]}  Bg6 {[%clk 0:02:27]} 14. Nh5 {[%clk 0:02:41]}  Bxh5 {[%clk 0:02:23]} 15. Qxh5 {[%clk 0:02:40]}  Qd7 {[%clk 0:02:02]} 16. f4 {[%clk 0:02:34]}  Nf5 {[%clk 0:01:55]} 17. Bd2 {[%clk 0:02:33]}  O-O-O {[%clk 0:01:40]} 18. fxg5 {[%clk 0:02:30]}  Bg7 {[%clk 0:00:57]} 19. Rxf5 {[%clk 0:02:27]}  exf5 {[%clk 0:00:55]} 20. gxh6 {[%clk 0:02:14]}  Bxe5 {[%clk 0:00:47]} 21. Re1 {[%clk 0:02:14]}  Rhe8 {[%clk 0:00:37]} 22. Kh1 {[%clk 0:01:08]}  Bf4 {[%clk 0:00:29]} 23. Bxf7 {[%clk 0:00:58]}  Rxe1+ {[%clk 0:00:19]} 24. Bxe1 {[%clk 0:00:58]}  Rf8 {[%clk 0:00:16]} 25. h7 {[%clk 0:00:49]}  Bh6 {[%clk 0:00:12]} 26. Qxh6 {[%clk 0:00:45]}  Qxf7 {[%clk 0:00:05]} 27. h8=Q {[%clk 0:00:45]} 1-0

[Event "December 12 Early 2023"]
[Site "https://www.chess.com"]
[Date "2023.12.12"]
[Round "1"]
[White "Flores Quillas, Diego Saul Rodri"]
[Black "Nepomniachtchi, Ian"]
[Result "0-1"]
[Board "2"]
[TimeControl "180+1"]
[WhiteFideId "3822508"]
[BlackFideId "4168119"]
[WhiteElo "2529"]
[BlackElo "3112"]
[WhiteTeam "PER"]
[BlackTeam "RUS"]
[WhiteClock "0:01:53"]
[BlackClock "0:02:04"]

1. e4 {[%clk 0:03:00]}  c5 {[%clk 0:02:59]} 2. Nf3 {[%clk 0:02:59]}  d6 {[%clk 0:03:00]} 3. d4 {[%clk 0:02:56]}  cxd4 {[%clk 0:03:01]} 4. Nxd4 {[%clk 0:02:56]}  Nf6 {[%clk 0:03:01]} 5. f3 {[%clk 0:02:56]}  e5 {[%clk 0:02:57]} 6. Nb3 {[%clk 0:02:56]}  Be7 {[%clk 0:02:54]} 7. c4 {[%clk 0:02:56]}  a5 {[%clk 0:02:54]} 8. Be3 {[%clk 0:02:53]}  a4 {[%clk 0:02:53]} 9. N3d2 {[%clk 0:02:53]}  Nc6 {[%clk 0:02:50]} 10. Nc3 {[%clk 0:02:43]}  Qa5 {[%clk 0:02:50]} 11. Rc1 {[%clk 0:02:42]}  Be6 {[%clk 0:02:47]} 12. Ndb1 {[%clk 0:02:40]}  O-O {[%clk 0:02:42]} 13. Be2 {[%clk 0:02:40]}  Nd4 {[%clk 0:02:36]} 14. Bxd4 {[%clk 0:02:37]}  exd4 {[%clk 0:02:36]} 15. Qxd4 {[%clk 0:02:38]}  Bd8 {[%clk 0:02:34]} 16. Qd2 {[%clk 0:02:34]}  Qc5 {[%clk 0:02:26]} 17. Nd5 {[%clk 0:02:30]}  Bxd5 {[%clk 0:02:19]} 18. cxd5 {[%clk 0:02:30]}  Qa7 {[%clk 0:02:20]} 19. Na3 {[%clk 0:02:16]}  Ba5 {[%clk 0:02:18]} 20. Rc3 {[%clk 0:02:13]}  Rac8 {[%clk 0:02:11]} 21. Nb5 {[%clk 0:02:06]}  Qb6 {[%clk 0:02:10]} 22. Qd4 {[%clk 0:01:56]}  Qxd4 {[%clk 0:02:04]} 23. Nxd4 {[%clk 0:01:53]}  Rxc3 {[%clk 0:02:04]} 0-1

[Event "December 12 Early 2023"]
[Site "https://www.chess.com"]
[Date "2023.12.12"]
[Round "1"]
[White "Andreikin, Dmitry"]
[Black "Estrada Nieto, Julian"]
[Result "1-0"]
[Board "3"]
[TimeControl "180+1"]
[WhiteFideId "4158814"]
[BlackFideId "5101018"]
[WhiteElo "3088"]
[BlackElo "2529"]
[WhiteTeam "FID"]
[BlackTeam "ESP"]
[WhiteClock "0:00:05"]
[BlackClock "0:00:00"]

1. d4 {[%clk 0:03:00]}  d5 {[%clk 0:02:57]} 2. c4 {[%clk 0:03:01]}  dxc4 {[%clk 0:02:55]} 3. e3 {[%clk 0:02:59]}  Nf6 {[%clk 0:02:55]} 4. Bxc4 {[%clk 0:02:59]}  e6 {[%clk 0:02:55]} 5. Nf3 {[%clk 0:03:00]}  c5 {[%clk 0:02:56]} 6. O-O {[%clk 0:03:00]}  a6 {[%clk 0:02:56]} 7. dxc5 {[%clk 0:02:59]}  Bxc5 {[%clk 0:02:56]} 8. Qxd8+ {[%clk 0:02:59]}  Kxd8 {[%clk 0:02:57]} 9. Ne5 {[%clk 0:02:59]}  Ke7 {[%clk 0:02:57]} 10. Be2 {[%clk 0:03:00]}  Nbd7 {[%clk 0:02:55]} 11. Nc4 {[%clk 0:02:57]}  Ne4 {[%clk 0:02:37]} 12. Nbd2 {[%clk 0:02:45]}  Ndf6 {[%clk 0:02:32]} 13. Bf3 {[%clk 0:02:15]}  Nd6 {[%clk 0:02:18]} 14. Nb3 {[%clk 0:02:05]}  Nxc4 {[%clk 0:01:52]} 15. Nxc5 {[%clk 0:02:04]}  Ra7 {[%clk 0:01:51]} 16. b3 {[%clk 0:01:59]}  Ne5 {[%clk 0:01:50]} 17. Be2 {[%clk 0:01:56]}  Rd8 {[%clk 0:01:43]} 18. Ba3 {[%clk 0:01:52]}  Ke8 {[%clk 0:01:42]} 19. Rfd1 {[%clk 0:01:53]}  Rxd1+ {[%clk 0:01:40]} 20. Rxd1 {[%clk 0:01:52]}  b6 {[%clk 0:01:41]} 21. Na4 {[%clk 0:01:50]}  Nd5 {[%clk 0:01:33]} 22. e4 {[%clk 0:01:41]}  Nf4 {[%clk 0:01:25]} 23. Bf1 {[%clk 0:01:41]}  Rd7 {[%clk 0:01:22]} 24. Rd6 {[%clk 0:01:16]}  b5 {[%clk 0:01:09]} 25. Nb6 {[%clk 0:01:14]}  Rc7 {[%clk 0:01:04]} 26. Nxc8 {[%clk 0:01:00]}  Rxc8 {[%clk 0:01:03]} 27. Rxa6 {[%clk 0:01:00]}  b4 {[%clk 0:00:58]} 28. Bb5+ {[%clk 0:00:50]}  Kd8 {[%clk 0:00:53]} 29. Bb2 {[%clk 0:00:49]}  Ned3 {[%clk 0:00:51]} 30. Bxd3 {[%clk 0:00:46]}  Nxd3 {[%clk 0:00:51]} 31. Rd6+ {[%clk 0:00:45]}  Ke7 {[%clk 0:00:51]} 32. Rxd3 {[%clk 0:00:45]}  Rc2 {[%clk 0:00:51]} 33. Rd4 {[%clk 0:00:32]}  Rxb2 {[%clk 0:00:50]} 34. g3 {[%clk 0:00:33]}  Rxa2 {[%clk 0:00:50]} 35. Rxb4 {[%clk 0:00:33]}  g5 {[%clk 0:00:47]} 36. Kg2 {[%clk 0:00:30]}  Kf6 {[%clk 0:00:45]} 37. Kf3 {[%clk 0:00:29]}  h5 {[%clk 0:00:45]} 38. h3 {[%clk 0:00:28]}  Ke5 {[%clk 0:00:38]} 39. Rb5+ {[%clk 0:00:28]}  Kf6 {[%clk 0:00:37]} 40. h4 {[%clk 0:00:28]}  g4+ {[%clk 0:00:37]} 41. Ke3 {[%clk 0:00:28]}  Rb2 {[%clk 0:00:35]} 42. Rxh5 {[%clk 0:00:21]}  Rxb3+ {[%clk 0:00:35]} 43. Kf4 {[%clk 0:00:21]}  Rf3+ {[%clk 0:00:33]} 44. Kxg4 {[%clk 0:00:22]}  Rxf2 {[%clk 0:00:34]} 45. e5+ {[%clk 0:00:21]}  Kg6 {[%clk 0:00:30]} 46. Rg5+ {[%clk 0:00:18]}  Kh7 {[%clk 0:00:27]} 47. Kh5 {[%clk 0:00:15]}  Rf3 {[%clk 0:00:24]} 48. Kg4 {[%clk 0:00:15]}  Rf1 {[%clk 0:00:24]} 49. Kh3 {[%clk 0:00:15]}  Rf2 {[%clk 0:00:24]} 50. Rg4 {[%clk 0:00:14]}  Re2 {[%clk 0:00:22]} 51. Rg5 {[%clk 0:00:08]}  Kh6 {[%clk 0:00:17]} 52. g4 {[%clk 0:00:08]}  Re3+ {[%clk 0:00:17]} 53. Kg2 {[%clk 0:00:08]}  Re2+ {[%clk 0:00:16]} 54. Kf3 {[%clk 0:00:08]}  Rh2 {[%clk 0:00:16]} 55. Rh5+ {[%clk 0:00:08]}  Kg6 {[%clk 0:00:16]} 56. Rh8 {[%clk 0:00:07]}  Kg7 {[%clk 0:00:12]} 57. Kg3 {[%clk 0:00:07]}  Rh1 {[%clk 0:00:12]} 58. Ra8 {[%clk 0:00:06]}  Re1 {[%clk 0:00:11]} 59. Kf4 {[%clk 0:00:06]}  Rf1+ {[%clk 0:00:11]} 60. Kg5 {[%clk 0:00:05]}  Re1 {[%clk 0:00:11]} 61. Ra5 {[%clk 0:00:05]}  Re4 {[%clk 0:00:09]} 62. h5 {[%clk 0:00:05]}  Re3 {[%clk 0:00:05]} 63. Kf4 {[%clk 0:00:03]}  Re1 {[%clk 0:00:04]} 64. Ra7 {[%clk 0:00:04]}  Rf1+ {[%clk 0:00:04]} 65. Kg5 {[%clk 0:00:05]}  Re1 {[%clk 0:00:04]} 66. h6+ {[%clk 0:00:05]}  Kg8 {[%clk 0:00:04]} 67. Kf6 {[%clk 0:00:06]}  Rf1+ {[%clk 0:00:04]} 68. Ke7 {[%clk 0:00:06]}  Rf4 {[%clk 0:00:03]} 69. g5 {[%clk 0:00:06]}  Kh7 {[%clk 0:00:02]} 70. Kf8 {[%clk 0:00:05]}  Kg6 {[%clk 0:00:01]} 71. h7 {[%clk 0:00:05]}  Kxh7 {[%clk 0:00:00]} 72. Rxf7+ {[%clk 0:00:05]} 1-0

[Event "December 12 Early 2023"]
[Site "https://www.chess.com"]
[Date "2023.12.12"]
[Round "1"]
[White "Erzhanov, Arman"]
[Black "Duda, Jan-Krzysztof"]
[Result "0-1"]
[Board "6"]
[TimeControl "180+1"]
[WhiteFideId "4138821"]
[BlackFideId "1170546"]
[WhiteElo "2524"]
[BlackElo "3059"]
[WhiteTeam "KAZ"]
[BlackTeam "POL"]
[WhiteClock "0:00:01"]
[BlackClock "0:01:03"]

1. e4 {[%clk 0:02:59]}  e6 {[%clk 0:03:00]} 2. b3 {[%clk 0:02:59]}  b6 {[%clk 0:02:57]} 3. d4 {[%clk 0:02:58]}  Bb7 {[%clk 0:02:57]} 4. Bd3 {[%clk 0:02:57]}  f5 {[%clk 0:02:47]} 5. exf5 {[%clk 0:02:16]}  Bxg2 {[%clk 0:02:46]} 6. Qh5+ {[%clk 0:02:16]}  g6 {[%clk 0:02:45]} 7. fxg6 {[%clk 0:02:16]}  Bg7 {[%clk 0:02:45]} 8. gxh7+ {[%clk 0:02:14]}  Kf8 {[%clk 0:02:45]} 9. hxg8=R+ {[%clk 0:01:57]}  Kxg8 {[%clk 0:02:44]} 10. Qg4 {[%clk 0:01:39]}  Bxh1 {[%clk 0:02:44]} 11. Bg5 {[%clk 0:01:33]}  Qf8 {[%clk 0:02:41]} 12. h4 {[%clk 0:01:23]}  Nc6 {[%clk 0:02:37]} 13. c3 {[%clk 0:01:22]}  Nxd4 {[%clk 0:02:24]} 14. cxd4 {[%clk 0:01:21]}  Qb4+ {[%clk 0:02:25]} 15. Nd2 {[%clk 0:00:56]}  Qxd4 {[%clk 0:02:15]} 16. Qxd4 {[%clk 0:00:51]}  Bxd4 {[%clk 0:02:16]} 17. Rc1 {[%clk 0:00:50]}  Rf8 {[%clk 0:02:13]} 18. Nh3 {[%clk 0:00:36]}  c5 {[%clk 0:02:07]} 19. Ke2 {[%clk 0:00:31]}  Bc6 {[%clk 0:01:55]} 20. Rg1 {[%clk 0:00:26]}  Kf7 {[%clk 0:01:53]} 21. Nf4 {[%clk 0:00:27]}  Rfg8 {[%clk 0:01:47]} 22. Ne4 {[%clk 0:00:18]}  Be5 {[%clk 0:01:42]} 23. Ke3 {[%clk 0:00:05]}  Rxh4 {[%clk 0:01:34]} 24. Bxh4 {[%clk 0:00:03]}  Rxg1 {[%clk 0:01:34]} 25. Ng5+ {[%clk 0:00:03]}  Kg8 {[%clk 0:01:24]} 26. Ng6 {[%clk 0:00:03]}  Bf6 {[%clk 0:01:06]} 27. f4 {[%clk 0:00:02]}  Rg2 {[%clk 0:01:02]} 28. a4 {[%clk 0:00:01]}  Bd4# {[%clk 0:01:03]} 0-1

[Event "December 12 Early 2023"]
[Site "https://www.chess.com"]
[Date "2023.12.12"]
[Round "1"]
[White "Fedoseev, Vladimir"]
[Black "Silva Lucena, Cristian"]
[Result "1/2-1/2"]
[Board "7"]
[TimeControl "180+1"]
[WhiteFideId "24130737"]
[BlackFideId "2232588"]
[WhiteElo "3058"]
[BlackElo "2524"]
[WhiteTeam "SLO"]
[BlackTeam "ESP"]
[WhiteClock "0:00:17"]
[BlackClock "0:00:06"]

1. e4 {[%clk 0:03:00]}  e5 {[%clk 0:02:59]} 2. Nf3 {[%clk 0:03:00]}  Nf6 {[%clk 0:03:00]} 3. Nxe5 {[%clk 0:02:59]}  Nxe4 {[%clk 0:03:00]} 4. Qe2 {[%clk 0:02:59]}  Qe7 {[%clk 0:03:01]} 5. Qxe4 {[%clk 0:02:59]}  d6 {[%clk 0:03:02]} 6. f4 {[%clk 0:02:57]}  dxe5 {[%clk 0:02:56]} 7. fxe5 {[%clk 0:02:57]}  f6 {[%clk 0:02:48]} 8. Nc3 {[%clk 0:02:55]}  Qxe5 {[%clk 0:02:43]} 9. Qxe5+ {[%clk 0:02:55]}  fxe5 {[%clk 0:02:44]} 10. Bc4 {[%clk 0:02:53]}  Bd6 {[%clk 0:02:43]} 11. d3 {[%clk 0:02:50]}  Nc6 {[%clk 0:02:41]} 12. Be3 {[%clk 0:02:47]}  Bd7 {[%clk 0:02:40]} 13. O-O-O {[%clk 0:02:39]}  O-O-O {[%clk 0:02:40]} 14. Ne4 {[%clk 0:02:35]}  Rdf8 {[%clk 0:02:36]} 15. h3 {[%clk 0:02:29]}  h6 {[%clk 0:02:35]} 16. a3 {[%clk 0:02:25]}  Nd4 {[%clk 0:02:31]} 17. Rdf1 {[%clk 0:02:11]}  a6 {[%clk 0:02:16]} 18. Bxd4 {[%clk 0:01:56]}  exd4 {[%clk 0:02:16]} 19. Nxd6+ {[%clk 0:01:57]}  cxd6 {[%clk 0:02:17]} 20. Bf7 {[%clk 0:01:57]}  Kc7 {[%clk 0:02:14]} 21. Rf2 {[%clk 0:01:50]}  Bc6 {[%clk 0:02:10]} 22. Rhf1 {[%clk 0:01:41]}  Kb6 {[%clk 0:02:10]} 23. g4 {[%clk 0:01:36]}  a5 {[%clk 0:02:07]} 24. Kd2 {[%clk 0:01:34]}  a4 {[%clk 0:02:07]} 25. h4 {[%clk 0:01:25]}  Kc5 {[%clk 0:01:59]} 26. Rf5+ {[%clk 0:01:22]}  d5 {[%clk 0:01:59]} 27. h5 {[%clk 0:01:14]}  Rd8 {[%clk 0:01:54]} 28. Bg6 {[%clk 0:01:07]}  Rd7 {[%clk 0:01:49]} 29. Rf7 {[%clk 0:01:06]}  Rhd8 {[%clk 0:01:48]} 30. R1f4 {[%clk 0:01:01]}  Rxf7 {[%clk 0:01:48]} 31. Rxf7 {[%clk 0:01:01]}  Rd7 {[%clk 0:01:48]} 32. Rf8 {[%clk 0:01:00]}  Re7 {[%clk 0:01:47]} 33. Bf5 {[%clk 0:01:00]}  Kd6 {[%clk 0:01:12]} 34. c3 {[%clk 0:00:51]}  Kc5 {[%clk 0:01:11]} 35. Rc8 {[%clk 0:00:46]}  dxc3+ {[%clk 0:01:11]} 36. bxc3 {[%clk 0:00:44]}  Kd6 {[%clk 0:01:07]} 37. Rd8+ {[%clk 0:00:27]}  Ke5 {[%clk 0:01:00]} 38. Ke3 {[%clk 0:00:26]}  Kf6+ {[%clk 0:00:56]} 39. Kd4 {[%clk 0:00:26]}  Re2 {[%clk 0:00:48]} 40. Rf8+ {[%clk 0:00:18]}  Ke7 {[%clk 0:00:48]} 41. Rg8 {[%clk 0:00:18]}  Kf7 {[%clk 0:00:48]} 42. Rc8 {[%clk 0:00:17]}  Ra2 {[%clk 0:00:45]} 43. Rc7+ {[%clk 0:00:17]}  Kf6 {[%clk 0:00:46]} 44. Bg6 {[%clk 0:00:16]}  Rxa3 {[%clk 0:00:43]} 45. Rf7+ {[%clk 0:00:16]}  Ke6 {[%clk 0:00:40]} 46. Rxg7 {[%clk 0:00:16]}  Rb3 {[%clk 0:00:31]} 47. Bf5+ {[%clk 0:00:16]}  Kf6 {[%clk 0:00:22]} 48. Rg6+ {[%clk 0:00:11]}  Kf7 {[%clk 0:00:22]} 49. Rxh6 {[%clk 0:00:10]}  a3 {[%clk 0:00:23]} 50. Rh8 {[%clk 0:00:09]}  Ba4 {[%clk 0:00:21]} 51. g5 {[%clk 0:00:06]}  a2 {[%clk 0:00:20]} 52. g6+ {[%clk 0:00:06]}  Kf6 {[%clk 0:00:20]} 53. Rf8+ {[%clk 0:00:07]}  Ke7 {[%clk 0:00:19]} 54. Rf7+ {[%clk 0:00:06]}  Kd6 {[%clk 0:00:19]} 55. g7 {[%clk 0:00:06]}  a1=Q {[%clk 0:00:19]} 56. g8=Q {[%clk 0:00:04]}  Qxc3+ {[%clk 0:00:18]} 57. Ke3 {[%clk 0:00:05]}  Qe1+ {[%clk 0:00:12]} 58. Kf4 {[%clk 0:00:05]}  Rb4+ {[%clk 0:00:12]} 59. Kf3 {[%clk 0:00:02]}  Bd1+ {[%clk 0:00:08]} 60. Kg2 {[%clk 0:00:02]}  Qe2+ {[%clk 0:00:07]} 61. Kh3 {[%clk 0:00:02]}  Qf3+ {[%clk 0:00:06]} 62. Qg3+ {[%clk 0:00:02]}  Qxg3+ {[%clk 0:00:06]} 63. Kxg3 {[%clk 0:00:03]}  Bxh5 {[%clk 0:00:06]} 64. Rh7 {[%clk 0:00:03]}  Be2 {[%clk 0:00:06]} 65. Kf2 {[%clk 0:00:02]}  Bd1 {[%clk 0:00:05]} 66. Ke3 {[%clk 0:00:03]}  Kc5 {[%clk 0:00:05]} 67. d4+ {[%clk 0:00:02]}  Kc4 {[%clk 0:00:04]} 68. Rc7+ {[%clk 0:00:03]}  Kb3 {[%clk 0:00:04]} 69. Be6 {[%clk 0:00:03]}  Rb5 {[%clk 0:00:03]} 70. Rxb7 {[%clk 0:00:03]}  Rxb7 {[%clk 0:00:03]} 71. Bxd5+ {[%clk 0:00:03]}  Kc3 {[%clk 0:00:04]} 72. Bxb7 {[%clk 0:00:04]}  Bb3 {[%clk 0:00:04]} 73. Be4 {[%clk 0:00:04]}  Kb4 {[%clk 0:00:04]} 74. Bg6 {[%clk 0:00:04]}  Kb5 {[%clk 0:00:05]} 75. Ke4 {[%clk 0:00:05]}  Kc6 {[%clk 0:00:05]} 76. Ke5 {[%clk 0:00:06]}  Kc7 {[%clk 0:00:05]} 77. Bf5 {[%clk 0:00:07]}  Kd8 {[%clk 0:00:06]} 78. Be6 {[%clk 0:00:07]}  Bc2 {[%clk 0:00:06]} 79. Kd6 {[%clk 0:00:07]}  Bd1 {[%clk 0:00:06]} 80. Bd5 {[%clk 0:00:08]}  Be2 {[%clk 0:00:06]} 81. Bc6 {[%clk 0:00:09]}  Bd1 {[%clk 0:00:07]} 82. Be4 {[%clk 0:00:09]}  Be2 {[%clk 0:00:07]} 83. Bc6 {[%clk 0:00:10]}  Bd1 {[%clk 0:00:07]} 84. Bb5 {[%clk 0:00:10]}  Bc2 {[%clk 0:00:08]} 85. Bc4 {[%clk 0:00:11]}  Bd1 {[%clk 0:00:08]} 86. Kc5 {[%clk 0:00:10]}  Bc2 {[%clk 0:00:08]} 87. d5 {[%clk 0:00:11]}  Be4 {[%clk 0:00:08]} 88. d6 {[%clk 0:00:12]}  Bf3 {[%clk 0:00:08]} 89. Bd5 {[%clk 0:00:12]}  Bxd5 {[%clk 0:00:07]} 90. Kxd5 {[%clk 0:00:13]}  Kd7 {[%clk 0:00:08]} 91. Ke5 {[%clk 0:00:13]}  Kd8 {[%clk 0:00:08]} 92. Kd4 {[%clk 0:00:14]}  Ke8 {[%clk 0:00:07]} 93. Ke4 {[%clk 0:00:14]}  Kd8 {[%clk 0:00:08]} 94. Ke5 {[%clk 0:00:15]}  Kd7 {[%clk 0:00:06]} 95. Kd5 {[%clk 0:00:15]}  Kd8 {[%clk 0:00:07]} 96. Kc5 {[%clk 0:00:15]}  Kd7 {[%clk 0:00:06]} 97. Kd5 {[%clk 0:00:16]}  Kd8 {[%clk 0:00:06]} 98. Ke6 {[%clk 0:00:15]}  Ke8 {[%clk 0:00:06]} 99. d7+ {[%clk 0:00:16]}  Kd8 {[%clk 0:00:06]} 100. Kd6 {[%clk 0:00:17]} 1/2-1/2

[Event "December 12 Early 2023"]
[Site "https://www.chess.com"]
[Date "2023.12.12"]
[Round "1"]
[White "Sarana, Alexey"]
[Black "Teterev, Vitaly"]
[Result "1-0"]
[Board "11"]
[TimeControl "180+1"]
[WhiteFideId "24133795"]
[BlackFideId "13501429"]
[WhiteElo "3028"]
[BlackElo "2520"]
[WhiteTeam "SRB"]
[BlackTeam "BLR"]
[WhiteClock "0:01:27"]
[BlackClock "0:00:10"]

1. d4 {[%clk 0:02:53]}  Nf6 {[%clk 0:02:59]} 2. c4 {[%clk 0:02:53]}  g6 {[%clk 0:02:59]} 3. Nc3 {[%clk 0:02:54]}  Bg7 {[%clk 0:03:00]} 4. e4 {[%clk 0:02:54]}  O-O {[%clk 0:03:00]} 5. Bd3 {[%clk 0:02:53]}  d6 {[%clk 0:03:00]} 6. Nge2 {[%clk 0:02:53]}  e5 {[%clk 0:02:53]} 7. d5 {[%clk 0:02:53]}  a5 {[%clk 0:02:53]} 8. f3 {[%clk 0:02:52]}  Na6 {[%clk 0:02:53]} 9. Be3 {[%clk 0:02:53]}  Nd7 {[%clk 0:02:41]} 10. Qd2 {[%clk 0:02:52]}  Ndc5 {[%clk 0:02:41]} 11. Bc2 {[%clk 0:02:49]}  Bd7 {[%clk 0:02:42]} 12. a3 {[%clk 0:02:48]}  a4 {[%clk 0:02:40]} 13. h4 {[%clk 0:02:47]}  f5 {[%clk 0:02:36]} 14. exf5 {[%clk 0:02:44]}  Bxf5 {[%clk 0:02:05]} 15. h5 {[%clk 0:02:41]}  Nb3 {[%clk 0:01:39]} 16. Bxb3 {[%clk 0:02:40]}  axb3 {[%clk 0:01:40]} 17. Ng3 {[%clk 0:02:35]}  Bc2 {[%clk 0:01:40]} 18. Nce4 {[%clk 0:02:30]}  b6 {[%clk 0:01:35]} 19. Bh6 {[%clk 0:02:26]}  Qe7 {[%clk 0:01:27]} 20. hxg6 {[%clk 0:02:25]}  hxg6 {[%clk 0:01:25]} 21. Bxg7 {[%clk 0:01:59]}  Qxg7 {[%clk 0:01:24]} 22. Qg5 {[%clk 0:01:59]}  Nc5 {[%clk 0:01:21]} 23. Rh6 {[%clk 0:01:41]}  Nd3+ {[%clk 0:01:13]} 24. Kd2 {[%clk 0:01:39]}  Nf4 {[%clk 0:01:06]} 25. Rah1 {[%clk 0:01:38]}  Rf7 {[%clk 0:00:43]} 26. Rh7 {[%clk 0:01:29]}  Qxh7 {[%clk 0:00:42]} 27. Nf6+ {[%clk 0:01:28]}  Rxf6 {[%clk 0:00:30]} 28. Rxh7 {[%clk 0:01:29]}  Kxh7 {[%clk 0:00:30]} 29. Qxf6 {[%clk 0:01:30]}  Rg8 {[%clk 0:00:29]} 30. Qh4+ {[%clk 0:01:26]}  Kg7 {[%clk 0:00:27]} 31. Qe7+ {[%clk 0:01:26]}  Kh6 {[%clk 0:00:27]} 32. Qxc7 {[%clk 0:01:27]}  Nxg2 {[%clk 0:00:27]} 33. Qxd6 {[%clk 0:01:26]}  Nh4 {[%clk 0:00:21]} 34. Qf6 {[%clk 0:01:26]}  Nf5 {[%clk 0:00:14]} 35. Nxf5+ {[%clk 0:01:26]}  Bxf5 {[%clk 0:00:10]} 36. Qxe5 {[%clk 0:01:27]} 1-0

[Event "December 12 Early 2023"]
[Site "https://www.chess.com"]
[Date "2023.12.12"]
[Round "1"]
[White "Baziuk, Vladyslav"]
[Black "Vokhidov, Shamsiddin"]
[Result "0-1"]
[Board "14"]
[TimeControl "180+1"]
[WhiteFideId "34107940"]
[BlackFideId "14204223"]
[WhiteElo "2517"]
[BlackElo "3010"]
[WhiteTeam "UKR"]
[BlackTeam "UZB"]
[WhiteClock "0:00:06"]
[BlackClock "0:01:54"]

1. e4 {[%clk 0:03:00]}  c5 {[%clk 0:02:59]} 2. Nf3 {[%clk 0:02:59]}  d6 {[%clk 0:03:00]} 3. d4 {[%clk 0:02:59]}  cxd4 {[%clk 0:03:01]} 4. Nxd4 {[%clk 0:03:00]}  Nf6 {[%clk 0:03:02]} 5. Nc3 {[%clk 0:03:01]}  Nc6 {[%clk 0:03:02]} 6. Be2 {[%clk 0:02:58]}  e5 {[%clk 0:03:02]} 7. Nb3 {[%clk 0:02:54]}  Be7 {[%clk 0:03:02]} 8. O-O {[%clk 0:02:54]}  O-O {[%clk 0:03:02]} 9. Re1 {[%clk 0:02:52]}  Be6 {[%clk 0:03:02]} 10. Bf3 {[%clk 0:02:49]}  Rc8 {[%clk 0:02:58]} 11. Be3 {[%clk 0:02:45]}  Na5 {[%clk 0:02:57]} 12. Nxa5 {[%clk 0:02:11]}  Qxa5 {[%clk 0:02:58]} 13. Qd3 {[%clk 0:02:04]}  a6 {[%clk 0:02:53]} 14. Bg5 {[%clk 0:01:51]}  Rfd8 {[%clk 0:02:46]} 15. Bxf6 {[%clk 0:01:50]}  Bxf6 {[%clk 0:02:47]} 16. a3 {[%clk 0:01:42]}  Bg5 {[%clk 0:02:45]} 17. g3 {[%clk 0:01:36]}  Bc4 {[%clk 0:02:44]} 18. Qd1 {[%clk 0:01:34]}  b5 {[%clk 0:02:44]} 19. h4 {[%clk 0:01:33]}  Bh6 {[%clk 0:02:44]} 20. Bg4 {[%clk 0:01:28]}  Rc6 {[%clk 0:02:40]} 21. Nd5 {[%clk 0:01:25]}  Bxd5 {[%clk 0:02:38]} 22. exd5 {[%clk 0:01:15]}  Rc4 {[%clk 0:02:37]} 23. c3 {[%clk 0:01:12]}  Qb6 {[%clk 0:02:35]} 24. Qf3 {[%clk 0:01:00]}  g6 {[%clk 0:02:33]} 25. h5 {[%clk 0:00:56]}  Bg5 {[%clk 0:02:30]} 26. hxg6 {[%clk 0:00:54]}  hxg6 {[%clk 0:02:31]} 27. Kg2 {[%clk 0:00:53]}  Qc7 {[%clk 0:02:19]} 28. Rh1 {[%clk 0:00:42]}  Qe7 {[%clk 0:02:15]} 29. Rh3 {[%clk 0:00:32]}  e4 {[%clk 0:02:14]} 30. Qe2 {[%clk 0:00:31]}  Qe5 {[%clk 0:02:12]} 31. Rah1 {[%clk 0:00:30]}  Bf6 {[%clk 0:02:13]} 32. Rh6 {[%clk 0:00:24]}  Bg7 {[%clk 0:02:12]} 33. R6h4 {[%clk 0:00:22]}  Qxd5 {[%clk 0:02:12]} 34. Qe3 {[%clk 0:00:21]}  Re8 {[%clk 0:02:08]} 35. Bd7 {[%clk 0:00:19]}  Re7 {[%clk 0:02:07]} 36. Bg4 {[%clk 0:00:12]}  Qe5 {[%clk 0:02:07]} 37. Rh7 {[%clk 0:00:11]}  d5 {[%clk 0:02:05]} 38. Be2 {[%clk 0:00:08]}  Rc6 {[%clk 0:02:02]} 39. g4 {[%clk 0:00:08]}  d4 {[%clk 0:01:55]} 40. cxd4 {[%clk 0:00:07]}  Qxd4 {[%clk 0:01:56]} 41. Qh3 {[%clk 0:00:07]}  Rc2 {[%clk 0:01:54]} 42. Rh8+ {[%clk 0:00:05]}  Bxh8 {[%clk 0:01:53]} 43. Qh7+ {[%clk 0:00:06]}  Kf8 {[%clk 0:01:53]} 44. Qxh8+ {[%clk 0:00:06]}  Qxh8 {[%clk 0:01:53]} 45. Rxh8+ {[%clk 0:00:06]}  Kg7 {[%clk 0:01:54]} 0-1